Cogmind - Beta 9.6 @@@ ROGUE MODE // 2020.05.24 @ 15:26:58 Player: Demise Result: Destroyed by as-70635 with Assembled Rifle Performance ------------- Evolutions (0) 0 Regions Visited (4) 800 Robots Destroyed (38) 190 Value Destroyed (508) 508 Prototype IDs (24) 480 Alien Tech Used (0) 0 Bonus (300) 300 TOTAL SCORE: 2278 Bonus ------- Aligned with FarCom 300 Cogmind --------- Core Integrity 0/250 Matter 274/300 Energy 100/100 System Corruption 2% Temperature Cool (0) Movement Core (50) Location -9/Mines Parts ------- > --- POWER (1) -------- (None) > --- PROPULSION (2) --- (None) > --- UTILITY (2) ------ (None) > --- WEAPON (2) ------- (None) > --- INVENTORY (4) ---- Humpback Humpback Peak State ------------ > --- POWER ------------ Improved Ion Engine > --- PROPULSION ------- Light Treads Wheel > --- UTILITY ---------- Humpback > --- WEAPON ----------- Assault Rifle Assault Rifle > --- INVENTORY -------- Ion Engine Light Treads Light Treads Large Storage Unit High-capacity Storage Unit Humpback Medium Battery Large Matter Pod Visual Processing Unit Sensor Array Improved Signal Interpreter Improved Terrain Scanner Terrain Scan Processor Targeting Computer Targeting Computer Cloak of Protection Hardened Light Armor Plating Hardened Light Armor Plating Hardened Light Armor Plating Hardened Light Armor Plating Hacking Suite Mining Laser [Rating: 12] Favorites ----------- Power Improved Ion Engine Engine Improved Ion Engine Propulsion Wheel Treads Light Treads Leg Aluminum Leg Wheel Wheel Utility Large Storage Unit Storage Large Storage Unit Weapon Assault Rifle Energy Gun EM Pulse Gun Ballistic Gun Assault Rifle Special Weapon Mining Laser Build | -11 -10 -10 -10 -9 ------- Run | Scr Mat Min Exi Min Slots Evolved . | . . . . . Power . | . . . . . Propulsion . | . . . . . Utility . | . . . . . Weapon . | . . . . . Parts Attached 32 | 8 19 4 1 . Power 4 | . 3 1 . . Engine 4 | . 3 1 . . Core . | . . . . . Reactor . | . . . . . Propulsion 13 | 7 3 3 . . Treads 2 | . 1 1 . . Leg . | . . . . . Wheel 11 | 7 2 2 . . Hover . | . . . . . Flight . | . . . . . Utility 7 | 1 5 . 1 . Device . | . . . . . Storage 7 | 1 5 . 1 . Processor . | . . . . . Hackware . | . . . . . Protection . | . . . . . Artifact . | . . . . . Weapon 8 | . 8 . . . Energy Gun 1 | . 1 . . . Energy Cannon . | . . . . . Ballistic Gun 6 | . 6 . . . Ballistic Cannon . | . . . . . Launcher . | . . . . . Special Weapon 1 | . 1 . . . Impact Weapon . | . . . . . Slashing Weapon . | . . . . . Piercing Weapon . | . . . . . Special Melee Weapon . | . . . . . Unidentified Prototypes . | . . . . . Parts Lost 10 | . 4 . 1 5 Power 2 | . 1 . . 1 Propulsion 4 | . 2 . . 2 Utility 2 | . . . 1 1 Weapon 2 | . 1 . . 1 Highest Loss Streak 5 | . 1 . 1 5 Average Slot Usage (%) 95 | . 99 100 88 78 Engine 13 | . 14 14 14 12 Treads 12 | . 10 14 14 13 Wheel 14 | . 16 14 14 12 Storage 24 | . 28 28 16 14 Energy Gun 4 | . 9 . . . Ballistic Gun 23 | . 18 28 28 26 Naked Turns . | . . . . . Heaviest Build 91 | 17 57 59 91 91 Greatest Support 26 | 26 20 20 20 20 Greatest Overweight (x) 5 | 1 5 5 4 4 Average Overweight (x) 2 | . 2 2 3 4 Largest Inventory Capacity 24 | 8 18 18 24 24 Average Capacity 17 | 7 14 18 22 23 Most Carried 24 | 8 18 18 24 24 Average Carried 16 | 7 14 17 19 23 Final Capacity 24 | 8 18 18 24 4 Final Carried 24 | 8 17 18 24 4 Class Distribution -------------------- 75% | Mutant 24% | Hauler-Mutant Dominant Class ---------------- Mutant | -10/Materials Mutant | -10/Mines Hauler-Mutant | -10/Exiles Hauler-Mutant | -9/Mines Resources | -11 -10 -10 -10 -9 ----------- Run | Scr Mat Min Exi Min Matter Collected 851 | 391 308 132 20 . Remotely . | . . . . . Salvage Created 1012 | 240 663 83 . 26 Parts 105 | 25 64 16 . . Haulers Intercepted 2 | . 2 . . . Recyclers Shooed . | . . . . . Parts Field Recycled . | . . . . . Retrieved Matter . | . . . . . Parts Self-Destructed . | . . . . . Prevented . | . . . . . Kills | -11 -10 -10 -10 -9 ------- Run | Scr Mat Min Exi Min Combat Hostiles Destroyed 16 | . 14 . . 2 Guns 16 | . 14 . . 2 Classes Destroyed 10 | 3 6 . . 1 Worker 3 | 2 . 1 . . Builder 4 | . 2 2 . . Tunneler 8 | 5 1 2 . . Hauler 2 | . 2 . . . Recycler 1 | 1 . . . . Operator 1 | . 1 . . . Watcher 3 | . 3 . . . Swarmer 6 | . 6 . . . Grunt 8 | . 8 . . . Assembled 2 | . . . . 2 Best Kill Streak 5 | 4 5 1 . 2 Combat Bots Only 3 | . 3 . . 2 Max Kills in Single Turn 2 | 1 2 1 . 1 Gunslinging 1 | . 1 . . . Exploded . | . . . . . Melee . | . . . . . Uniques/NPCs Destroyed . | . . . . . Combat | -11 -10 -10 -10 -9 -------- Run | Scr Mat Min Exi Min Damage Taken 1622 | . 642 . . 980 Core 260 | . 119 . . 141 Absorbed by Shields . | . . . . . Core Remaining (%) 100 | 100 . . . . Volleys Fired 107 | 14 74 7 . 12 Largest 2 | 2 2 2 . 2 Hottest 100 | 70 100 40 . 40 Shots Fired 204 | 28 145 14 . 17 Gun 202 | 28 143 14 . 17 Cannon . | . . . . . Launcher . | . . . . . Special 2 | . 2 . . . Kinetic 121 | 14 76 14 . 17 Thermal 29 | 14 15 . . . Explosive . | . . . . . Electromagnetic 54 | . 54 . . . Robot Hit Streak 10 | 10 8 3 . 5 Robot Miss Streak 4 | 3 4 2 . 3 Penetration Max . | . . . . . Secondary Targets 3 | . 2 . . 1 Max Gunslinging Chain 1 | . 1 . . 1 Shots Hit Robots 119 | 16 86 7 . 10 Core Hits 55 | 9 36 5 . 5 Critical Hits 1 | . 1 . . . Critical Kills 1 | . 1 . . . Critical Parts Destroyed . | . . . . . Melee Attacks . | . . . . . Impact . | . . . . . Slashing . | . . . . . Piercing . | . . . . . Sneak Attacks . | . . . . . Combat Hostiles . | . . . . . Follow-up Attacks . | . . . . . Damage Inflicted 1509 | 214 1056 115 . 124 Guns 1416 | 214 963 115 . 124 Cannons . | . . . . . Explosions 93 | . 93 . . . Melee . | . . . . . Ramming . | . . . . . Kinetic 713 | 78 396 115 . 124 Thermal 343 | 136 207 . . . Explosive . | . . . . . Electromagnetic 453 | . 453 . . . Impact . | . . . . . Slashing . | . . . . . Piercing . | . . . . . Highest Corruption 2 | . 2 2 2 2 Average Corruption 2 | . 2 2 2 2 Corruption Purged . | . . . . . Effects 17 | . 1 7 5 4 Message Errors 4 | . 1 1 . 2 Heat Flow Errors 3 | . . 2 1 . Energy Discharges 9 | . . 3 4 2 Data Loss (minor) 1 | . . 1 . . Overload Shots . | . . . . . Overflow Damage 25 | . 25 . . . Projectiles . | . . . . . Explosions 25 | . 25 . . . Melee . | . . . . . Knockbacks . | . . . . . Impact . | . . . . . Kinetic . | . . . . . Secondary . | . . . . . Self-Inflicted Damage 36 | . 36 . . . Shots 1 | . 1 . . . Rammed . | . . . . . Targets Rammed . | . . . . . Kicked . | . . . . . Crushed . | . . . . . Highest Temperature 269 | 81 135 155 269 . Average Temperature 43 | 31 32 67 139 . Received Heat Transfer 150 | . 150 . . . Siege Activations . | . . . . . Robots Corrupted . | . . . . . Combat Hostiles . | . . . . . Parts Fried 1 | . 1 . . . Impact Corruptions . | . . . . . Robots Melted . | . . . . . Combat Hostiles . | . . . . . Parts Melted . | . . . . . Heat Transferred 790 | 407 383 . . . Parts Sabotaged . | . . . . . Parts Stolen . | . . . . . Parts Stripped . | . . . . . Power Chain Reactions 2 | . 2 . . . Missiles Intercepted . | . . . . . Alert | -11 -10 -10 -10 -9 ------- Run | Scr Mat Min Exi Min Peak Influence 217 | 40 217 24 . . Average Influence 68 | 24 108 13 . . Maximum Alert Level 1 | . 1 . . . Low Security (%) 98 | 100 97 100 . 100 Level 1 1 | . 2 . . . Level 2 . | . . . . . Level 3 . | . . . . . Level 4 . | . . . . . Level 5 . | . . . . . High Security . | . . . . . Max Security . | . . . . . Squads Dispatched 5 | . 5 . . . Investigation 2 | . 2 . . . Extermination . | . . . . . Reinforcement 3 | . 3 . . . Assault . | . . . . . Garrison . | . . . . . Intercept . | . . . . . Construction Impeded . | . . . . . Haulers Reinforced . | . . . . . Stealth | -11 -10 -10 -10 -9 --------- Run | Scr Mat Min Exi Min Distress Signals . | . . . . . Communications Jammed . | . . . . . Distress Signals . | . . . . . Times Spotted 39 | . 28 . . 11 Peak Tracking Total 12 | . 4 . . 12 Tactical Retreats 1 | . 1 . . . Traps | -11 -10 -10 -10 -9 ------- Run | Scr Mat Min Exi Min Traps Triggered 3 | . 3 . . . Indirectly . | . . . . . Trap Hack Attempts . | . . . . . Triggered . | . . . . . Disarmed . | . . . . . Reprogrammed . | . . . . . Reused . | . . . . . Traps Extracted . | . . . . . Installed . | . . . . . Triggered . | . . . . . Machines | -11 -10 -10 -10 -9 ---------- Run | Scr Mat Min Exi Min Machines Disabled 1 | . 1 . . . Max in Single Turn 1 | . 1 . . . Machines Sabotaged . | . . . . . Garrisons Compromised . | . . . . . Overloaded Fab Kills . | . . . . . Fab Network Shutdowns . | . . . . . Hacking | -11 -10 -10 -10 -9 --------- Run | Scr Mat Min Exi Min Machines Accessed 8 | . 6 . 2 . Terminals 5 | . 5 . . . Fabricators . | . . . . . Repair Stations 1 | . 1 . . . Recycling Units . | . . . . . Scanalyzers . | . . . . . Garrison Access . | . . . . . Total Hacks 19 | . 17 . 2 . Successful 11 | . 9 . 2 . Failed 7 | . 7 . . . Catastrophic 1 | . 1 . . . Database Lockouts 2 | . 2 . . . Manual 14 | . 13 . 1 . Terminals 13 | . 13 . . . Fabricators . | . . . . . Repair Stations 4 | . 4 . . . Recycling Units . | . . . . . Scanalyzers . | . . . . . Garrison Access . | . . . . . Terminal Hacks 4 | . 2 . 2 . Record 1 | . . . 1 . Part Schematic 1 | . 1 . . . Prototype ID Bank 1 | . 1 . . . EX-Prototype ID Bank 1 | . . . 1 . Fabricator Hacks . | . . . . . Repair Station Hacks 4 | . 4 . . . Scan Component 2 | . 2 . . . Repair 2 | . 2 . . . Recycling Unit Hacks . | . . . . . Scanalyzer . | . . . . . Garrison Access Hacks . | . . . . . Unauthorized Hacks 3 | . 3 . . . Terminals 3 | . 3 . . . Track 1 | . 1 . . . Botnet 2 | . 2 . . . Fabricators . | . . . . . Repair Stations . | . . . . . Recycling Units . | . . . . . Scanalyzers . | . . . . . Garrison Access . | . . . . . Data Cores Recovered . | . . . . . Used . | . . . . . Hacking Detections 6 | . 6 . . . Full Trace Events 1 | . 1 . . . Feedback Events . | . . . . . Feedback Blocked . | . . . . . Robot Schematics Acquired . | . . . . . Robots Built . | . . . . . Matter . | . . . . . Time . | . . . . . Total Robot Build Rating . | . . . . . Part Schematics Acquired 1 | . 1 . . . Parts Built . | . . . . . Matter . | . . . . . Time . | . . . . . Total Part Build Rating . | . . . . . Parts Repaired 2 | . 2 . . . Time 52 | . 52 . . . Parts Recycled . | . . . . . Recycled Matter . | . . . . . Retrieved Matter . | . . . . . Retrieved Components . | . . . . . Parts Scanalyzed . | . . . . . Part Schematics Acquired . | . . . . . Parts Damaged . | . . . . . Bothacking | -11 -10 -10 -10 -9 ------------ Run | Scr Mat Min Exi Min Used RIF Installer . | . . . . . Robots Hacked . | . . . . . Non-combat . | . . . . . Combat . | . . . . . Robot Hacks Applied . | . . . . . Relay Couplers Released . | . . . . . Robots Rewired . | . . . . . Allies Hacked . | . . . . . Hacks Repelled . | . . . . . Allies | -11 -10 -10 -10 -9 -------- Run | Scr Mat Min Exi Min Total Allies . | . . . . . Largest Group . | . . . . . Highest-Rated Group . | . . . . . Highest-Rated Ally . | . . . . . Total Orders . | . . . . . Ally Attacks . | . . . . . Total Damage . | . . . . . Kills . | . . . . . Allies Corrupted . | . . . . . Allies Melted . | . . . . . Intel | -11 -10 -10 -10 -9 ------- Run | Scr Mat Min Exi Min Robot Analysis Total . | . . . . . Derelict Logs Recovered . | . . . . . Drone Launches . | . . . . . Drone Recoveries . | . . . . . Exploration | -11 -10 -10 -10 -9 ------------- Run | Scr Mat Min Exi Min Turns Passed 2880 | 149 1266 606 711 148 Spaces Moved 1514 | 88 766 312 299 49 Core . | . . . . . Treads 667 | . 75 244 299 49 Legs . | . . . . . Wheels 847 | 88 691 68 . . Hover . | . . . . . Flight . | . . . . . Fastest Speed 80 | 80 80 130 160 240 Average Speed 154 | 84 115 184 229 240 Slowest Speed 240 | 110 180 200 240 240 Overloaded Moves . | . . . . . Propulsion Burnouts . | . . . . . Robots Hopped . | . . . . . Cave-ins Triggered . | . . . . . Exploration Rate (%) 45 | 4 97 36 65 25 Regions Visited 4 Branch Regions 3 Pre-discovered Areas 1 | . . . 1 . Known Exits Taken . | . . . . . Unknown Exits Taken 4 | 1 1 1 1 . Scrap Searched 1 | . . . . 1 Spaces Dug 2 | . 2 . . . Terrain Destroyed 12 | . 12 . . . Melee . | . . . . . Projectile 2 | . 2 . . . AOE 10 | . 10 . . . Actions | -11 -10 -10 -10 -9 --------- Run | Scr Mat Min Exi Min Total 1876 | 142 1014 331 326 63 Wait 126 | 18 106 2 . . Move 1510 | 87 765 311 298 49 Hop . | . . . . . Pick Up 56 | 6 26 2 21 1 Fast Attach 7 | 2 4 . 1 . Attach 5 | 2 3 . . . Detach . | . . . . . Swap 20 | 4 12 4 . . Drop 45 | 9 24 5 6 1 Fire 107 | 14 74 7 . 12 Melee . | . . . . . Ram . | . . . . . Kick . | . . . . . Crush . | . . . . . Escape Stasis . | . . . . . Rewire . | . . . . . Trap . | . . . . . Miscellaneous . | . . . . . Route ------- -11/Scrapyard -10/Materials (discovered 5 exits: [*Mat x3] / [*Min x2]) -10/Mines (discovered 2 exits: [*Mat] / *Exi) -10/Exiles -9/Mines History --------- Turn | Location | Event 13 | -11/Scrapyard | Discovered new exit (range 3) 150 | -11/Scrapyard | Entered Materials 312 | -10/Materials | Build established: Mutant 370 | -10/Materials | Discovered new exit (range 16) 637 | -10/Materials | Discovered new exit (range 12) 991 | -10/Materials | Discovered new exit (range 6) 1199 | -10/Materials | Discovered new exit (range 5) 1236 | -10/Materials | Discovered new exit (range 7) 1288 | -10/Materials | Central database locked down 1352 | -10/Materials | Repaired Sensor Array 1378 | -10/Materials | Repaired Lrg. Storage Unit 1416 | -10/Materials | Entered Mines 1450 | -10/Mines | Met a Derelict bent on vengeance 1506 | -10/Mines | Joined a pair of Derelicts in attacking an 0b10 outpost 1592 | -10/Mines | Discovered new exit (range 11) 1991 | -10/Mines | Deemed a non-threat by the Exiles lab entrance 1993 | -10/Mines | Discovered new exit (range 5) 2022 | -10/Mines | Entered Exiles 2070 | -10/Exiles | Met 8R-AWN 2104 | -10/Exiles | Met EX-HEX 2355 | -10/Exiles | Met EX-BIN 2384 | -10/Exiles | Aligned with FarCom system 2386 | -10/Exiles | Given EX-Vault access code 2442 | -10/Exiles | Opened EX-Vault 2458 | -10/Exiles | Found Cloak of Protection 2472 | -10/Exiles | Build established: Hauler-Mutant 2512 | -10/Exiles | Warned to stay clear of 0b10 Research branches 2540 | -10/Exiles | Exiles lab attacked by MAIN.C 2594 | -10/Exiles | Learned location of Zion (-6) 2714 | -10/Exiles | Discovered new exit (range 10) 2733 | -10/Exiles | Left Exiles lab with Cloak of Protection 2733 | -10/Exiles | Entered Mines 2827 | -9/Mines | Assembled infested the area 2848 | -9/Mines | Core integrity fell below 50% 2881 | -9/Mines | Core integrity fell below 20% 2881 | -9/Mines | Destroyed by as-70635 with Assembled Rifle Last Messages --------------- 02762_ System corrupted: Energy discharge (-106). 02772_ T-07 Excavator is excavating. 02794_ Y 6KR>/9S/O/:3XQJG/VKVVWNDHJ4MFO#O 02827_ ALERT: Infestation in the mines, dispatching Demolisher response squad. 02827_ System corrupted: Energy discharge (-84). 02831_ K-01 Serf collects debris. 02843_ K-01 Serf destroyed. 02844_ ZX-C33 destroyed. 02859_ as-12460 destroyed. 02859_ Switching to secondary target: as-10691. 02864_ Imp. Ion Engine destroyed. 02866_ Wheel destroyed. 02867_ Assault Rifle destroyed. 02872_ Lgt. Treads destroyed. 02873_ K-01 Serf destroyed. 02877_ as-99781 destroyed. 02878_ as-10691 destroyed. 02880_ Humpback destroyed. 02881_ TMT4GHFXA537UA7OM5O9|SAD4ZPLHMOLS 02881_ Assault Rifle severed. Map ----- +----------------------------------------------------+ | ?????????????????????????????????????????????????? | | ?????????????????????????????????????????????????? | | ?????????????????????????????????????????????????? | | ?????????????????????????????????????????????????? | | ????????????????????????? ???????????????????????? | | ????????????????????????# ???????????????? ?????? | | ????????????????????????# ????????##?????? ?????? | | ????????????????????????# ?????### ###???? ?????? | | ???????????????????????## #???## ???? #????? | | ??????????????????????## ##?? ?????# #???? | | ??????????????????????# #?? #?????# #??? | | ??????????????????????# #??# #?????# #??? | | ??????????????????????# #?## #?????# #??? | | ??????????????????????# ### ##????# #### | | ????????????? ????????# ## ##???? | | ????????????# ??????# !%= #???? | | ??????????????# ##### #???## | | ???????????????# #??### | | ????????????????? *%= #### | | ????????????????????????#%!a | | ????????????????????????# aa | | ????????????????????????##aaa ########## | | ?????????????????????????#%! ##????????# | | ????????????????????????##!!!#?????????## | | ????????????????????????#aa!!##?????????### # | | ????????????????????????#@!!!!#???????????#### #? | | ????????????????????????##!!! #?????????????# #? | | ?????????????????????????#!!! #????????????# #? | | ?????????????????????????# ! #???????????# #? | | ????????????????????????? #??????????## ## | | ????????????????????????? #?????????? | | ???????????????????????? ##?????????## ## | | ???????????????????????? #???????????###### | | ???????????????????????? #????????????????# | | ????????????????????????? ##????????????????? | | ????????????????????????? ####?????????????????? | | ????????????????????????? #?????????????????????? | | ????????????????????????? #??????????????????????? | | ????????????????????????? ???????????????????????? | | ?????????????????????????????????????????????????? | | ?????????????????????????????????????????????????? | | ?????????????????????????????????????????????????? | | | | | | | | | | | | | | | | | +----------------------------------------------------+ Best States ------------- Heat Dissipation 25 Energy Generation 12 Energy Capacity 265 Matter Stores 300 Matter Capacity 300 Sight Range 16 Terrain Scan Density 10 Evasion (%) 44 Recoil Reduction 1 Item Schematics ----------------- Hcp. Storage Unit | -10/Materials | Hacked Robot Schematics ------------------ None Fabricated ------------ Nothing Alien Tech Used ----------------- None Achievements -------------- None Challenges ------------ None Game ------ Seed CouplerStructuralScrap Manual? 0 Play Time 00:21:00 Cumulative 210.3 hours Start 2020.05.24 @ 11:52:09 End 2020.05.24 @ 15:26:58 Sessions 3 Manual Loads 0 Difficulty Rogue Special Mode None Game No. 273 Rogue 262 Adventurer 11 Explorer 0 Win Type - Total 0 Types 0/0/0/0/0/0/0 Lore% 51 Gallery% 64 Achievement% 45 Wizard Run 0 Options --------- ASCII 0 Keyboard 1 Movement Numpad Keybinds 0 Fullscreen 1 Font 12/Terminus Map View 83x54 Tactical HUD 1 Map Filters NONE Filters NONE Steam 1 RUN: dd84fb71-ee95-44a1-8d0b-c287813741ad